bitfinex/quotes_SOLUSD_20250402
["timestamp","ask_amount","ask_price","bid_price","bid_amount"]
[1743627916646,0.5,126.87,126.86,32.9400034]
[1743627916850,30.66964886,126.87,126.86,32.9400034]
[1743627917059,30.953972,126.87,126.86,32.9400034]
[1743627917243,18.933972,126.82,126.77,3.99747472]
[1743627917443,0.5,126.79,126.73,10.716817]
[1743627917636,135.9,126.82,126.73,4.89722662]
[1743627917835,135.9,126.83,126.73,4.89722662]
[1743627918541,154.54964886,126.82,126.73,4.89722662]
[1743627918843,135.9,126.82,126.73,4.89722662]
[1743627919045,135.9,126.86,126.74,0.28432314]
[1743627919247,135.9,126.85,126.77,26.0]
[1743627919445,135.9,126.94,126.86,0.14216157]
[1743627919762,135.9,126.93,126.85,26.0]
[1743627920066,135.9,126.93,126.82,0.14216157]
[1743627920369,135.9,126.92,126.82,0.14216157]
[1743627920538,135.9,126.92,126.81,26.0]
[1743627920539,135.9,126.92,126.78,0.31849438]
[1743627920738,135.9,126.91,126.78,0.31849438]
[1743627920962,135.9,126.9,126.78,0.31849438]
[1743627921157,18.64964886,126.88,126.74,269.9]
[1743627921363,147.92,126.87,126.73,4.89722662]
[1743627921663,154.54964886,126.86,126.73,4.89722662]
[1743627921867,18.64964886,126.84,126.73,4.89722662]
[1743627922162,18.64964886,126.82,126.73,4.89722662]
[1743627922360,135.9,126.81,126.73,4.89722662]
[1743627922540,135.9,126.8,126.75,26.0]
[1743627922742,135.9,126.79,126.75,26.0]
[1743627923266,135.9,126.8,126.74,0.14216157]
[1743627923438,135.9,126.8,126.76,26.0]
[1743627923759,135.9,126.8,126.77,0.14216157]
[1743627924263,135.9,126.88,126.85,26.0]
[1743627924451,135.9,126.87,126.82,0.14216157]
[1743627924639,135.9,126.91,126.82,0.14216157]
[1743627924841,81.16552638,126.9,126.82,0.14216157]
[1743627925059,81.66552638,126.89,126.83,15.89541948]
[1743627925263,65.2701069,126.82,126.78,21.19389265]
[1743627925443,12.02,126.82,126.78,21.19389265]
[1743627926062,12.02,126.82,126.81,26.0]
[1743627926439,135.9,126.85,126.81,26.0]
[1743627926637,135.9,126.84,126.81,26.0]
[1743627926873,135.9,126.84,126.82,0.14216157]
[1743627927368,135.9,126.87,126.81,26.0]
[1743627928367,135.9,126.86,126.78,21.19389265]
[1743627928551,154.69181043,126.85,126.78,12.01160318]
[1743627928753,135.9,126.84,126.81,26.0]
[1743627929074,94.12,126.88,126.82,26.14216157]
[1743627929075,135.9,126.88,126.82,26.14216157]
[1743627929255,12.02,126.93,126.86,0.14216157]
[1743627929649,12.02,126.93,126.86,26.14216157]
[1743627929852,12.02,126.93,126.86,26.0]
[1743627930364,135.9,126.92,126.86,26.0]
[1743627930558,135.9,126.91,126.84,26.14216157]
[1743627931251,71.77283438,126.9,126.89,37.95197036]
[1743627931447,135.9,126.91,126.89,37.95197036]
[1743627931654,135.9,126.91,126.89,11.95197036]
[1743627932369,136.4,126.91,126.88,26.0]
[1743627932564,135.9,126.87,126.85,11.95197036]
[1743627932769,135.9,126.86,126.85,11.95197036]
[1743627933161,0.5,126.9,126.85,11.95197036]
[1743627933485,135.9,126.89,126.88,26.0]
[1743627933687,135.9,126.88,126.78,26.0]
[1743627933846,135.9,126.87,126.79,0.14216157]
[1743627934042,0.5,126.9,126.86,0.03]
[1743627934280,135.9,126.89,126.86,0.03]
[1743627934575,135.9,126.88,126.86,0.03]
[1743627934751,225.16865087,126.87,126.86,0.03]
[1743627934960,225.45297401,126.87,126.86,0.03]
[1743627935163,18.64964886,126.86,126.74,0.14216157]
[1743627935483,0.5,126.81,126.75,26.0]
[1743627935645,0.5,126.84,126.75,26.0]
[1743627936068,136.4,126.85,126.75,26.0]
[1743627936355,0.5,126.84,126.75,26.0]
[1743627936550,0.5,126.84,126.74,0.14216157]
[1743627936551,0.5,126.82,126.74,0.14216157]
[1743627936756,147.9,126.81,126.76,26.0]
[1743627937577,12.0,126.81,126.76,26.0]
[1743627937776,135.9,126.83,126.77,0.14216157]
[1743627938086,135.9,126.82,126.75,26.0]
[1743627938264,135.9,126.82,126.76,0.14216157]
[1743627938456,135.9,126.82,126.75,26.0]
[1743627938651,135.9,126.81,126.76,26.0]
[1743627938872,135.9,126.8,126.73,4.92722662]
[1743627939073,135.9,126.79,126.74,0.14216157]
[1743627939370,94.6,126.85,126.77,0.14216157]
[1743627939371,135.9,126.81,126.77,0.14216157]
[1743627939573,135.9,126.8,126.76,26.0]
[1743627939772,135.9,126.8,126.73,5.06938819]
[1743627940081,147.9,126.79,126.73,4.92722662]
[1743627940373,136.4,126.78,126.73,4.92722662]
[1743627940776,12.0,126.79,126.73,4.92722662]
[1743627940954,136.4,126.78,126.73,4.92722662]
[1743627941150,154.54964886,126.77,126.73,4.92722662]
[1743627941360,0.5,126.75,126.69,71.10108138]
[1743627941581,0.5,126.73,126.69,71.10108138]
[1743627941884,0.5,126.71,126.63,7.27783101]
[1743627942179,116.35277338,126.7,126.65,26.0]
[1743627942381,116.35277338,126.69,126.65,26.0]
[1743627942678,116.35277338,126.68,126.61,0.14216157]
[1743627942875,128.35277338,126.67,126.6,0.03]
[1743627943081,116.35277338,126.66,126.6,0.03]
[1743627943258,116.35277338,126.7,126.61,26.0]
[1743627943454,116.35277338,126.71,126.63,26.0]
[1743627943780,15.79734594,126.65,126.64,0.14216157]
[1743627943963,15.79734594,126.65,126.56,12.0]
[1743627944161,132.15011932,126.7,126.57,1.57856813]
[1743627944479,116.85277338,126.69,126.54,39.96036604]
[1743627944654,116.35277338,126.68,126.56,39.70032082]
[1743627945054,116.35277338,126.68,126.54,39.49415815]
[1743627945256,116.35277338,126.68,126.55,0.14216157]
[1743627945257,4.91660017,126.58,126.55,0.14216157]
[1743627945583,153.21324724,126.67,126.59,0.14216157]
[1743627945764,153.21324724,126.67,126.58,40.00327154]
[1743627945765,36.86047386,126.67,126.58,40.00327154]
[1743627945967,36.86047386,126.67,126.57,39.83282739]
[1743627946267,36.86047386,126.67,126.57,63.23282739]
[1743627946580,15.79734594,126.66,126.58,39.96079957]
[1743627946767,71.62221298,126.64,126.58,39.96079957]
[1743627947294,51.90145886,126.64,126.55,24.18844701]
[1743627947454,36.20765886,126.64,126.56,39.10611547]
[1743627947659,32.26350804,126.64,126.59,23.4]
[1743627947872,12.54275392,126.64,126.6,35.4]
[1743627948055,12.54275392,126.64,126.63,26.14216157]
[1743627948252,15.79734594,126.66,126.64,0.42648471]
[1743627948655,116.35277338,126.7,126.64,0.14216157]
[1743627948874,116.35277338,126.69,126.64,0.14216157]
[1743627949071,116.35277338,126.73,126.64,0.14216157]
[1743627949361,116.35277338,126.72,126.63,0.14216157]
[1743627949582,116.35277338,126.71,126.64,0.28432314]
[1743627949892,11.94048265,126.75,126.7,26.14216157]
[1743627950094,128.29325603,126.75,126.7,0.14216157]
[1743627950262,128.29325603,126.75,126.7,26.14216157]
[1743627950591,116.35277338,126.75,126.7,26.14216157]
[1743627950757,116.35277338,126.75,126.69,26.0]
[1743627950963,116.35277338,126.75,126.7,0.14216157]
[1743627951778,116.35277338,126.75,126.69,0.14216157]
[1743627952370,116.35277338,126.74,126.68,26.0]
[1743627952698,128.85277338,126.73,126.64,0.14216157]
[1743627952986,116.35277338,126.72,126.6,0.14216157]
[1743627953187,116.35277338,126.71,126.63,0.14216157]
[1743627953493,116.35277338,126.72,126.63,26.14216157]
[1743627953691,116.35277338,126.72,126.65,0.14216157]
[1743627953859,116.35277338,126.72,126.68,26.14216157]
[1743627954063,116.35277338,126.72,126.68,26.0]
[1743627954483,116.35277338,126.75,126.69,0.14216157]
[1743627954666,128.35277338,126.78,126.73,26.14216157]
[1743627954873,128.40147338,126.79,126.72,0.42648471]
[1743627955180,128.40147338,126.79,126.73,26.0]
[1743627955372,116.35277338,126.79,126.75,0.14216157]
[1743627955775,12.0,126.8,126.75,0.14216157]
[1743627955978,12.0,126.8,126.76,0.14216157]
[1743627956684,128.35277338,126.84,126.76,26.14216157]
[1743627956987,116.35277338,126.83,126.76,26.14216157]
[1743627957187,116.35277338,126.83,126.72,40.02792595]
[1743627957374,0.063,126.8,126.73,0.14216157]
[1743627957574,116.35277338,126.79,126.68,58.21884244]
[1743627957792,116.35277338,126.78,126.69,0.28432314]
[1743627957983,116.35277338,126.77,126.72,0.14216157]
[1743627958178,12.0,126.78,126.72,40.17008752]
[1743627958382,12.0,126.78,126.75,26.0]
[1743627958760,12.0,126.78,126.73,0.14216157]
[1743627959285,12.0,126.78,126.73,26.14216157]
[1743627959868,116.35277338,126.77,126.72,26.0]
[1743627960064,116.35277338,126.76,126.67,0.14216157]
[1743627960389,116.35277338,126.75,126.67,0.14216157]
[1743627960601,12.0,126.78,126.74,0.14216157]
[1743627960771,73.64124477,126.8,126.74,0.14216157]
[1743627961097,0.5,126.78,126.77,12.09538318]
[1743627961299,6.3081,126.82,126.77,12.09538318]
[1743627961468,135.9,126.81,126.77,12.09538318]
[1743627962092,135.9,126.8,126.76,12.09538318]
[1743627962590,135.9,126.79,126.76,12.09538318]
[1743627962789,135.9,126.78,126.76,12.09538318]
[1743627963094,11.98,126.77,126.76,12.09538318]
[1743627963394,11.98,126.77,126.75,47.84720705]
[1743627963586,135.9,126.76,126.75,47.84720705]
[1743627963771,11.98,126.77,126.75,47.84720705]
[1743627964471,88.05279295,126.73,126.67,21.30593062]
[1743627964671,88.05279295,126.72,126.67,21.30593062]
[1743627964866,88.05279295,126.72,126.7,26.0]
[1743627965086,88.05279295,126.76,126.71,0.14216157]
[1743627965966,88.05279295,126.75,126.68,26.0]
[1743627966173,88.05279295,126.74,126.64,0.14216157]
[1743627966491,88.05279295,126.73,126.64,0.14216157]
[1743627966686,88.05279295,126.72,126.64,0.14216157]
[1743627966863,100.03279295,126.71,126.66,26.0]
[1743627967065,100.03279295,126.7,126.62,0.14216157]
[1743627967283,88.05279295,126.69,126.62,0.14216157]
[1743627967510,88.05279295,126.69,126.61,0.42648471]
[1743627967792,88.05279295,126.69,126.64,0.14216157]
[1743627968394,88.05279295,126.69,126.63,0.14216157]
[1743627968698,88.05279295,126.68,126.63,0.14216157]
[1743627968879,88.05279295,126.69,126.63,0.14216157]
[1743627969075,88.05279295,126.68,126.6,0.14216157]
[1743627969386,88.05279295,126.68,126.63,0.14216157]
[1743627970993,11.98,126.69,126.63,0.14216157]
[1743627971396,88.05279295,126.68,126.62,26.0]
[1743627971579,88.05279295,126.67,126.62,26.0]
[1743627971777,88.05279295,126.66,126.59,0.03]
[1743627971981,88.05279295,126.65,126.59,0.03]
[1743627972386,88.05279295,126.64,126.59,0.03]
[1743627972685,11.98,126.63,126.59,0.03]
[1743627972887,100.03279295,126.63,126.59,0.03]
[1743627973101,88.05279295,126.62,126.59,0.03]
[1743627973272,88.05279295,126.61,126.59,0.03]
[1743627973473,88.05279295,126.62,126.59,0.03]
[1743627973781,11.98,126.63,126.59,0.03]
[1743627976999,8.3236,126.73,126.59,0.03]
[1743627977187,9.4147,126.78,126.62,0.5]
[1743627977503,9.4147,126.78,126.65,0.28432314]
[1743627977668,135.9,126.77,126.64,0.28432314]
[1743627977864,9.4147,126.78,126.64,0.28432314]
[1743627978376,11.98,126.77,126.64,0.28432314]
[1743627978889,9.4147,126.78,126.65,0.14216157]
[1743627979192,19.47103926,126.82,126.65,0.28432314]
[1743627979391,135.9,126.81,126.65,0.42648471]
[1743627979591,135.9,126.81,126.65,23.82648471]
[1743627979887,135.9,126.8,126.67,0.14216157]
[1743627980194,0.14216157,126.77,126.56,9.8689]
[1743627980494,135.9,126.76,126.6,0.64216157]
[1743627980799,11.98,126.75,126.6,39.8202175]
[1743627980975,11.98,126.75,126.61,0.28432314]
[1743627981175,135.9,126.76,126.6,51.3002175]
[1743627981390,11.98,126.75,126.6,12.12216157]
[1743627981575,13.95260487,126.75,126.6,12.12216157]
[1743627982070,135.9,126.74,126.6,0.14216157]
[1743627982271,135.9,126.73,126.6,0.42648471]
[1743627982696,2.2572757,126.72,126.6,0.14216157]
[1743627983069,2.2572757,126.72,126.59,0.03]
[1743627983272,9.8037,126.69,126.59,0.03]
[1743627983483,0.28432314,126.67,126.59,0.03]
[1743627984085,1.9741671,126.66,126.59,0.03]
[1743627984284,135.9,126.65,126.59,0.03]
[1743627985500,141.427,126.65,126.59,0.03]
[1743627985669,141.427,126.65,126.54,4.02712078]
[1743627985670,135.9,126.65,126.54,11.21214219]
[1743627985872,17.79305345,126.66,126.51,9.2308]
[1743627985873,135.9,126.64,126.52,0.42648471]
[1743627986704,135.9,126.64,126.52,4.43192515]
[1743627987483,135.9,126.64,126.52,11.63870617]
[1743627987679,135.9,126.64,126.52,0.42648471]
[1743627987907,135.9,126.64,126.52,39.87710919]
[1743627988083,135.9,126.64,126.52,47.28989708]
[1743627988280,12.26625345,126.67,126.52,74.69929007]
[1743627988281,148.16625345,126.67,126.52,74.69929007]
[1743627988482,11.96,126.66,126.52,86.65929007]
[1743627988704,147.86,126.66,126.52,47.20866559]
[1743627988884,135.9,126.65,126.52,47.20866559]
[1743627989395,135.9,126.65,126.52,86.65929007]
[1743627990107,135.9,126.65,126.53,27.6613]
[1743627990416,135.9,126.64,126.53,27.6613]
[1743627990614,135.9,126.63,126.54,0.14216157]
[1743627990789,4.5405,126.67,126.54,0.42648471]
[1743627990991,135.9,126.68,126.54,0.42648471]
[1743627991200,12.26625345,126.69,126.56,0.64216157]
[1743627991506,12.26625345,126.69,126.61,0.14216157]
[1743627992094,5.345e-05,126.69,126.64,0.28432314]
[1743627992304,9.4875,126.79,126.67,0.28432314]
[1743627992483,9.4875,126.79,126.66,0.14216157]
[1743627992484,39.83785413,126.78,126.66,0.14216157]
[1743627992680,135.9,126.77,126.66,0.14216157]
[1743627992906,149.8323475,126.77,126.62,0.42648471]
[1743627993112,37.86592441,126.78,126.64,0.42648471]
[1743627993412,179.28732441,126.78,126.68,0.14216157]
[1743627993585,135.9,126.77,126.67,67.1034]
[1743627993786,137.8725246,126.77,126.67,67.1034]
[1743627994018,9.4471,126.75,126.67,7.8945]
[1743627994186,135.9,126.74,126.67,7.8945]
[1743627994386,11.96,126.73,126.67,7.8945]
[1743627994692,11.96,126.73,126.65,87.63036489]
[1743627994693,0.28432314,126.72,126.65,87.63036489]
[1743627994901,39.46681994,126.67,126.65,52.08736489]
[1743627995109,51.84105703,126.66,126.65,52.08736489]
[1743627995411,17.77132314,126.66,126.53,47.4195]
[1743627995610,1.97433942,126.65,126.53,27.6613]
[1743627996116,135.9,126.64,126.53,27.6613]
[1743627996313,135.9,126.65,126.53,27.6613]
[1743627996610,135.9,126.67,126.54,12.10216157]
[1743627996819,135.9,126.7,126.54,12.10216157]
[1743627996982,2.11575247,126.69,126.54,12.10216157]
[1743627997185,2.11575247,126.69,126.53,7.9032]
[1743627997186,0.28432314,126.67,126.53,7.9032]
[1743627997415,135.9,126.66,126.52,0.03]
[1743627997717,1.97416199,126.65,126.53,0.14216157]
[1743627997879,136.18432314,126.64,126.52,0.03]
[1743627998079,5.66886157,126.66,126.52,0.03]
[1743627998080,0.42648471,126.62,126.52,0.03]
[1743627998320,0.28432314,126.6,126.52,0.03]
[1743627998532,135.9,126.6,126.52,0.03]
[1743627998997,0.5,126.57,126.52,0.03]
[1743627999201,137.87575153,126.56,126.52,0.03]
[1743627999398,153.8717,126.55,126.52,0.03]
[1743627999707,0.28432314,126.53,126.52,0.03]
[1743627999894,1.97599228,126.54,126.52,0.03]
[1743628000096,0.28432314,126.53,126.52,0.03]
[1743628000420,11.94,126.57,126.52,0.03]
[1743628002293,135.9,126.62,126.52,0.03]
[1743628002500,135.9,126.61,126.52,0.03]
[1743628002903,135.9,126.63,126.52,0.31432314]
[1743628003088,147.86,126.67,126.54,0.42648471]
[1743628003290,147.84,126.72,126.56,0.42648471]
[1743628003502,137.87336028,126.71,126.58,0.14216157]
[1743628004113,0.64216157,126.69,126.55,67.167]
[1743628004319,0.28432314,126.67,126.58,24.53434122]
[1743628004617,11.94,126.66,126.58,24.53434122]
[1743628004822,147.84,126.66,126.58,24.53434122]
[1743628005064,0.42648471,126.64,126.58,24.53434122]
[1743628005199,0.28432314,126.62,126.58,24.53434122]
[1743628005397,135.9,126.62,126.55,27.657]
[1743628005617,135.9,126.61,126.55,27.657]
[1743628006322,1.97456074,126.64,126.57,24.53434122]
[1743628006626,81.0434714,126.66,126.57,24.53434122]
[1743628006800,81.0434714,126.69,126.58,0.42648471]
[1743628007425,81.0434714,126.69,126.61,27.6438]
[1743628007593,11.94,126.7,126.62,0.14216157]
[1743628007928,11.94,126.74,126.62,0.42648471]
[1743628008127,11.94,126.74,126.62,23.82648471]
[1743628008418,11.94,126.74,126.62,0.42648471]
[1743628008918,83.01615554,126.77,126.64,0.28432314]
[1743628009123,81.0434714,126.76,126.64,0.42648471]
[1743628009494,81.0434714,126.78,126.66,0.42648471]
[1743628009807,81.0434714,126.8,126.66,0.42648471]
[1743628010009,81.0434714,126.82,126.66,0.42648471]
[1743628010330,120.49588331,126.82,126.66,0.42648471]
[1743628011028,128.38108331,126.82,126.66,0.42648471]
[1743628011525,120.49588331,126.82,126.68,0.42648471]
[1743628011727,120.49588331,126.82,126.7,0.28432314]
[1743628011931,122.58981224,126.81,126.68,0.14216157]
[1743628012099,81.0434714,126.8,126.68,0.14216157]
[1743628012298,39.49585819,126.79,126.68,0.14216157]
[1743628012499,81.0434714,126.78,126.68,0.14216157]
[1743628012904,0.5,126.75,126.65,7.8957]
[1743628013126,85.21634904,126.74,126.6,27.646]
[1743628013317,1.97347764,126.74,126.6,27.646]
[1743628013621,81.0434714,126.73,126.63,0.14216157]
[1743628013931,81.0434714,126.77,126.65,0.28432314]
[1743628014107,120.79732921,126.78,126.65,0.42648471]
[1743628014424,41.57921434,126.77,126.65,0.14216157]
[1743628014602,81.0434714,126.76,126.65,0.14216157]
[1743628015423,81.0434714,126.76,126.66,27.6329]
[1743628015627,81.0434714,126.75,126.66,27.6329]
[1743628016029,81.0434714,126.75,126.67,0.14216157]
[1743628016829,81.0434714,126.74,126.66,67.1086]
[1743628017032,81.0434714,126.73,126.66,67.1086]
[1743628017324,83.0164011,126.72,126.66,7.8951]
[1743628017529,81.0434714,126.71,126.6,47.3932]
[1743628017825,9.8647297,126.72,126.6,27.646]
[1743628017826,83.01720873,126.7,126.6,27.646]
[1743628018330,81.32779454,126.69,126.6,27.646]
[1743628018532,0.28432314,126.67,126.6,27.646]
[1743628018703,92.9634714,126.66,126.6,27.646]
[1743628019720,92.9634714,126.66,126.6,7.8988]
[1743628019905,1.9738549,126.65,126.58,7.9001]
[1743628020717,0.28432314,126.64,126.58,7.9001]
[1743628020922,0.28432314,126.62,126.55,7.902]
[1743628021107,1.97510495,126.61,126.55,7.902]
[1743628021306,11.92,126.6,126.55,7.902]
[1743628021524,11.92,126.6,126.52,0.03]
[1743628021725,83.01872464,126.59,126.52,0.03]
[1743628022232,81.0434714,126.58,126.52,0.03]
[1743628022412,83.01904929,126.57,126.52,0.03]
[1743628022613,81.0434714,126.59,126.52,0.03]
[1743628023138,1.97498691,126.58,126.52,0.03]
[1743628023317,81.0434714,126.57,126.52,0.03]
[1743628023524,0.28432314,126.55,126.52,0.03]
[1743628023720,13.89627253,126.54,126.52,0.03]
[1743628023934,13.89627253,126.54,126.47,7.907]
[1743628024122,81.0434714,126.53,126.47,27.6745]
[1743628024311,81.0434714,126.58,126.48,0.42648471]
[1743628024509,83.01876459,126.57,126.47,67.2095]
[1743628024847,0.28432314,126.55,126.47,27.6745]
[1743628025022,94.93986816,126.54,126.47,27.6745]
[1743628025419,81.0434714,126.53,126.47,27.6745]
[1743628025613,1.97595314,126.57,126.47,27.6745]
[1743628025614,81.0434714,126.56,126.48,0.14216157]
[1743628025819,81.0434714,126.56,126.47,67.2095]
[1743628026026,1.97573518,126.55,126.47,27.6745]
[1743628026228,11.92,126.56,126.47,27.6745]
[1743628026433,81.0434714,126.55,126.47,27.6745]
[1743628026737,83.01894442,126.54,126.47,27.6745]
[1743628027044,92.9634714,126.53,126.47,27.6745]
[1743628027240,1.97635929,126.52,126.47,27.6745]
[1743628027445,81.0434714,126.51,126.47,27.6745]
[1743628027749,83.0197238,126.5,126.47,7.907]
[1743628027914,81.0434714,126.49,126.47,7.907]
[1743628028238,81.0434714,126.5,126.46,23.8464]
[1743628028429,81.0434714,126.53,126.46,43.6154]
[1743628029321,1.97572853,126.52,126.46,23.8464]
[1743628029622,1.97676653,126.55,126.46,43.6154]
[1743628029825,81.0434714,126.61,126.47,0.14216157]
[1743628029826,13.89598102,126.6,126.47,0.14216157]
[1743628030024,81.0434714,126.59,126.47,0.14216157]
[1743628030211,83.01910804,126.58,126.46,43.6154]
[1743628030416,0.28432314,126.54,126.46,23.8464]
[1743628030639,13.89674653,126.53,126.46,43.6154]
[1743628030947,81.0434714,126.52,126.46,43.6154]
[1743628031245,13.89674653,126.53,126.46,43.6154]
[1743628031246,81.0434714,126.51,126.46,43.6154]
[1743628031455,81.0434714,126.5,126.46,43.6154]
[1743628031639,81.0434714,126.55,126.47,0.14216157]
[1743628031842,81.0434714,126.56,126.47,10.623]
[1743628032146,81.0434714,126.58,126.48,0.28432314]
[1743628032439,11.92,126.59,126.5,0.42648471]
[1743628032943,11.92,126.59,126.5,0.14216157]
[1743628033142,13.89506747,126.59,126.49,5.1535]
[1743628033521,81.0434714,126.58,126.5,67.1935]
[1743628034348,81.0434714,126.57,126.5,67.1935]
[1743628035067,83.01901006,126.56,126.5,7.9051]
[1743628035226,81.0434714,126.55,126.5,27.6679]
[1743628035425,81.0434714,126.54,126.5,27.6679]
[1743628035622,81.0434714,126.54,126.46,39.5681]
[1743628035827,83.01948445,126.53,126.46,55.4771]
[1743628036028,81.0434714,126.56,126.47,0.14216157]
[1743628036638,81.0434714,126.56,126.47,0.42648471]
[1743628036825,81.0434714,126.56,126.41,21.58677223]
[1743628036826,0.5,126.38,126.32,73.61810911]
[1743628037030,0.5,126.35,126.21,196.26005529]
[1743628037347,0.5,126.23,126.14,39.23014365]
[1743628037524,1.98192804,126.22,126.12,284.67671632]
[1743628037720,1.42985606,126.21,126.15,240.6101622]
[1743628037930,83.02476761,126.27,126.15,248.5370622]
[1743628038242,83.02476761,126.27,126.16,301.04]
[1743628038243,81.5434714,126.26,126.16,301.04]
[1743628038441,0.5,126.23,126.15,226.7888707]
[1743628038646,94.94531657,126.22,126.15,226.7888707]
[1743628038820,81.0434714,126.21,126.15,234.7156707]
[1743628039030,81.0434714,126.21,126.15,13.9231085]
[1743628039240,83.02477465,126.2,126.15,5.9963085]
[1743628039545,81.0434714,126.19,126.15,5.9963085]
[1743628039748,83.02526328,126.18,126.15,5.9963085]
[1743628039943,83.02526328,126.18,126.15,6.0263085]
[1743628040254,81.0434714,126.17,126.15,6.0263085]
[1743628040434,83.02513364,126.21,126.15,6.0263085]
[1743628040747,129.10513632,126.18,126.15,13.9532085]
[1743628040939,129.10513632,126.18,126.15,6.0263085]
[1743628041133,131.08687853,126.18,126.15,6.0263085]
[1743628041343,81.0434714,126.17,126.15,6.0263085]
[1743628041754,129.10513632,126.18,126.15,6.0263085]
[1743628042050,75.31132952,126.22,126.15,6.0263085]
[1743628042051,75.31132952,126.22,126.16,11.92]
[1743628042231,39.44815858,126.31,126.15,35.16598555]
[1743628042427,39.74483628,126.29,126.16,0.5]
[1743628042628,13.89922826,126.28,126.15,23.24598555]
[1743628042830,81.0434714,126.27,126.15,23.24598555]
[1743628043030,1.98089095,126.26,126.14,256.05015853]
[1743628043256,81.0434714,126.25,126.14,204.27093884]
[1743628043434,39.81018384,126.23,126.11,2.8849969]
[1743628043642,94.96537639,126.22,126.11,2.8849969]
[1743628044053,48.04772896,126.15,126.11,2.8849969]
[1743628044247,13.92215485,126.14,125.99,243.67364991]
[1743628044843,39.52202664,126.13,125.99,243.67364991]
[1743628045040,48.04772896,126.15,125.99,256.09364991]
[1743628045348,59.96772896,126.15,126.01,19.8396]
[1743628045556,59.96772896,126.15,126.0,34.99153805]
[1743628045737,81.0434714,126.14,126.0,0.5]
[1743628045930,81.0434714,126.14,126.01,17.202]
[1743628046133,81.0434714,126.14,126.02,5.0675]
[1743628046456,81.0434714,126.14,126.03,17.202]
[1743628046957,92.9834714,126.13,126.04,0.14216157]
[1743628047159,11.94,126.13,126.04,0.14216157]
[1743628047329,11.94,126.13,126.01,38.37510394]
[1743628047531,81.0434714,126.12,126.01,38.37510394]
[1743628047841,81.0434714,126.11,126.01,38.37510394]
[1743628048047,48.04772896,126.15,126.03,0.5]
[1743628048743,81.0434714,126.14,126.01,105.82980394]
[1743628049140,48.04772896,126.11,126.01,105.82980394]
[1743628049350,7.42362896,126.11,126.03,0.28432314]
[1743628049662,7.42362896,126.11,126.05,0.42648471]
[1743628049832,2.896e-05,126.11,126.05,0.42648471]
[1743628050228,81.0434714,126.1,126.04,67.4387]
[1743628050537,81.0434714,126.09,126.04,27.7688]
[1743628050735,81.0434714,126.08,126.04,27.7688]
[1743628050936,2.896e-05,126.11,126.04,27.7688]
[1743628050937,81.0434714,126.1,126.04,27.7688]
[1743628051141,81.0434714,126.09,126.04,27.7688]
[1743628051758,2.896e-05,126.11,126.02,0.42648471]
[1743628051966,2.896e-05,126.11,126.05,0.03]
[1743628052260,81.0434714,126.1,126.05,0.03]
[1743628052457,81.0434714,126.09,126.05,0.03]
[1743628052962,81.0434714,126.1,126.01,66.15050394]
[1743628053259,2.896e-05,126.11,126.01,66.15050394]
[1743628053260,83.02641405,126.09,126.01,27.7754]
[1743628053637,83.02641405,126.09,125.99,39.683]
[1743628053838,81.0434714,126.09,126.0,0.42648471]
[1743628054039,81.0434714,126.09,125.99,39.683]
[1743628054362,81.0434714,126.08,125.99,39.683]
[1743628054553,81.0434714,126.09,126.0,0.42648471]
[1743628054935,81.0434714,126.09,125.96,39.5904849]
[1743628055134,81.0434714,126.09,125.95,12.44]
[1743628055437,11.94,126.1,125.98,39.44476582]
[1743628055641,11.94,126.1,125.97,39.91740095]
[1743628056055,11.94,126.1,126.0,26.0]
[1743628056243,2.896e-05,126.11,126.01,49.71]
[1743628056433,2.896e-05,126.11,126.05,26.0]
[1743628056951,81.0434714,126.16,126.08,0.42648471]
[1743628057151,81.0434714,126.15,126.07,26.0]
[1743628057737,81.0434714,126.15,126.11,26.0]
[1743628058055,81.0434714,126.14,126.08,67.4173]
[1743628058249,81.0434714,126.13,126.08,67.4173]
[1743628058560,92.9834714,126.13,126.08,67.4173]
[1743628058861,81.0434714,126.12,126.08,67.4173]